fUSD/lending_fUSD_20260508
["ID","MTS","AMOUNT","RATE_DAILY","PERIOD"]
[421865533,1778248237000,-438.0,0.00023,2]
[421865521,1778248237000,-220.01648876,0.00022407,2]
[421865525,1778248237000,-331.39424204,0.00022706,2]
[421865522,1778248237000,-900.0,0.00022643,2]
[421865528,1778248237000,-620.84326571,0.00022761,2]
[421865520,1778248237000,-220.01648876,0.00022407,2]
[421865524,1778248237000,-380.52932165,0.00022706,2]
[421865526,1778248237000,-96.84326571,0.00022706,2]
[421865523,1778248237000,-3367.2331706,0.00022706,2]
[421865527,1778248237000,-403.15673429,0.00022761,2]
[421865606,1778248238000,-837.15583597,0.00023019,2]
[421865608,1778248238000,-350.595004,0.00023019,2]
[421865604,1778248238000,-2384.91899349,0.00023019,2]
[421865770,1778248239000,-574.404996,0.00023019,2]
[421865774,1778248239000,-963.76004824,0.00023019,2]
[421865772,1778248239000,-304.23995176,0.00023019,2]
[421865778,1778248239000,-1124.0615707,0.00023019,2]
[421865782,1778248239000,-410.295,0.00023019,2]
[421865776,1778248239000,-417.0,0.00023019,2]
[421866049,1778248243000,-356.86912779,0.00023892,2]
[421866044,1778248243000,-2091.6434293,0.00023019,2]
[421866046,1778248243000,-1024.0,0.00023303,2]
[421866048,1778248243000,-1024.0,0.00023845,2]
[421866047,1778248243000,-155.66,0.00023606,2]
[421866045,1778248243000,-2000.0,0.00023078,2]
[421866051,1778248245000,-506.0,0.00023019,2]
[421866052,1778248246000,-283.89999999,0.00023019,2]
[421866057,1778248502000,500.0,0.00028422,120]
[421866066,1778249018000,156.39,9.69e-05,2]
[421866065,1778249018000,156.39,8.721e-05,2]
[421866070,1778249342000,179.0073444,0.00030136,120]
[421866073,1778249348000,-3533.18373472,0.000107,2]
[421866071,1778249348000,-156.39,0.00010659,2]
[421866072,1778249348000,-150.0,0.00010699,2]
[421866077,1778249391000,500.0,0.00028801,120]
[421866095,1778249431000,-156.39,0.00011628,2]
[421866093,1778249431000,-57268.7817128,0.000107,2]
[421866092,1778249431000,-3229.88370083,0.000107,2]
[421866098,1778249431000,-156.39,0.00012597,2]
[421866091,1778249431000,-570.71633029,0.000107,2]
[421866089,1778249431000,-1200.0,0.00010699,2]
[421866090,1778249431000,-729.84688241,0.000107,2]
[421866096,1778249431000,-255.0,0.00011737,2]
[421866108,1778249431000,-156.39,0.00013566,2]
[421866099,1778249431000,-433.0,0.00012871,2]
[421866110,1778249431000,-250.0,0.00014,2]
[421866102,1778249431000,-250.0,0.00013344,2]
[421866100,1778249431000,-2351.0,0.00012946,2]
[421866112,1778249431000,-479.37242044,0.00014123,2]
[421866106,1778249431000,-157.24131601,0.00013488,2]
[421866104,1778249431000,-151.74412025,0.00013488,2]
[421866097,1778249431000,-1680.0,0.00011769,2]
[421866196,1778249438000,-2759.16172715,0.0001424,2]
[421866201,1778249438000,-380.52932165,0.00014899,2]
[421866213,1778249438000,-1048.71929695,0.000149,2]
[421866219,1778249438000,-572.63857253,0.00014973,2]
[421866207,1778249438000,-154.99317027,0.000149,2]
[421866199,1778249438000,-2000.0,0.00014627,2]
[421866193,1778249438000,-256.62757956,0.00014123,2]
[421866202,1778249438000,-27331.68918468,0.00014899,2]
[421866209,1778249438000,-572.91200816,0.000149,2]
[421866204,1778249438000,-6038.3392091,0.000149,2]
[421866200,1778249438000,-21075.99589367,0.00014899,2]
[421866221,1778249438000,-500.0,0.00014973,2]
[421866195,1778249438000,-503.86584441,0.0001424,2]
[421866215,1778249438000,-2803.09757584,0.000149,2]
[421866229,1778249438000,-500.0,0.00014973,2]
[421866227,1778249438000,-500.0,0.00014973,2]
[421866211,1778249438000,-28730.91051864,0.000149,2]
[421866225,1778249438000,-500.0,0.00014973,2]
[421866231,1778249438000,-500.0,0.00014973,2]
[421866233,1778249438000,-7210003.06085793,0.00015,2]
[421866194,1778249438000,-28.97242844,0.0001424,2]
[421866197,1778249438000,-156.39,0.00014535,2]
[421866198,1778249438000,-500.0,0.00014604,2]
[421866217,1778249438000,-500.0,0.00014973,2]
[421866223,1778249438000,-500.0,0.00014973,2]
[421866459,1778249440000,-65825.54557337,0.00015,2]
[421866481,1778249440000,-891.9241332,0.00015,2]
[421866642,1778249442000,-344.0,0.00015,2]
[421866646,1778249443000,-3843.89820875,0.00015,2]
[421866643,1778249443000,-0.83763629,0.00015,2]
[421866645,1778249443000,-316.220239,0.00015,2]
[421866647,1778249443000,-23771.10118,0.00015,2]
[421866644,1778249443000,-70420.52036504,0.00015,2]
[421866648,1778249443000,-327.365286,0.00015,2]
[421866651,1778249445000,-897.11209083,0.00015,2]
[421866652,1778249445000,-3237.80242697,0.00015,2]
[421866670,1778249492000,-23037.5595084,0.00015,2]
[421866669,1778249492000,-151.0,0.00014997,2]
[421866667,1778249492000,-1125.7200785,0.000149,2]
[421866668,1778249492000,-685.7204131,0.0001496,2]
[421866671,1778249493000,-25000.0,0.00015,2]
[421866672,1778249494000,-25000.0,0.00015,2]
[421866673,1778249495000,-25000.0,0.00015,2]
[421866675,1778249497000,-25000.0,0.00015,2]
[421866674,1778249497000,-25000.0,0.00015,2]
[421866677,1778249499000,-25000.0,0.00015,2]
[421866676,1778249499000,-25000.0,0.00015,2]
[421866678,1778249500000,-25000.0,0.00015,2]
[421866680,1778249501000,-25000.0,0.00015,2]
[421866679,1778249501000,-25000.0,0.00015,2]
[421866681,1778249505000,-25000.0,0.00015,2]
[421866682,1778249506000,-25000.0,0.00015,2]
[421866683,1778249507000,-25000.0,0.00015,2]
[421866685,1778249515000,-24833.0,0.00015,2]
[421866684,1778249515000,-167.0,0.00015,3]
[421866686,1778249516000,-25000.0,0.00015,2]
[421866688,1778249526000,-500.0,0.00014999,2]
[421866687,1778249526000,-150.0,0.00014999,2]
[421866689,1778249526000,-500.0,0.00014999,2]
[421866690,1778249526000,-176.94610572,0.00014999,2]
[421866692,1778249526000,-500.0,0.00014999,2]
[421866694,1778249526000,-1761.05389428,0.00015,2]
[421866691,1778249526000,-500.0,0.00014999,2]
[421866693,1778249526000,-500.0,0.00014999,2]
[421866695,1778249534000,500.0,0.00028801,120]
[421866707,1778249866000,152.0,0.00028968,120]
[421866708,1778249867000,152.0,0.00028968,120]
[421866710,1778249899000,152.0,0.00028974,120]
[421866711,1778249936000,-300.0,0.00014799,2]
[421866714,1778249936000,-191.90604981,0.000148,2]
[421866713,1778249936000,-5893.23598929,0.000148,2]
[421866712,1778249936000,-824.56276953,0.000148,2]
[421866728,1778249937000,-500.0,0.00014899,2]
[421866727,1778249937000,-500.0,0.00014899,2]
[421866729,1778249937000,-500.0,0.00014899,2]
[421866731,1778249937000,-500.0,0.00014899,2]
[421866732,1778249937000,-500.0,0.00014899,2]
[421866734,1778249937000,-500.0,0.00014899,2]
[421866724,1778249937000,-500.0,0.00014899,2]
[421866730,1778249937000,-500.0,0.00014899,2]
[421866725,1778249937000,-500.0,0.00014899,2]
[421866720,1778249937000,-537.93328249,0.00014899,2]
[421866723,1778249937000,-500.0,0.00014899,2]
[421866722,1778249937000,-500.0,0.00014899,2]
[421866721,1778249937000,-556.85545207,0.00014899,2]
[421866719,1778249937000,-500.0,0.00014899,2]
[421866716,1778249937000,-1200.0,0.00014898,2]
[421866717,1778249937000,-300.0,0.00014898,2]
[421866718,1778249937000,-150.0,0.00014898,2]
[421866726,1778249937000,-500.0,0.00014899,2]
[421866733,1778249937000,-500.0,0.00014899,2]
[421866715,1778249937000,-300.0,0.00014898,2]
[421866736,1778249937000,-500.0,0.00014899,2]
[421866735,1778249937000,-500.0,0.00014899,2]
[421866754,1778249937000,-500.0,0.00014899,2]
[421866752,1778249937000,-500.0,0.00014899,2]
[421866751,1778249937000,-500.0,0.00014899,2]
[421866750,1778249937000,-500.0,0.00014899,2]
[421866749,1778249937000,-500.0,0.00014899,2]
[421866748,1778249937000,-500.0,0.00014899,2]
[421866747,1778249937000,-500.0,0.00014899,2]
[421866746,1778249937000,-500.0,0.00014899,2]
[421866753,1778249937000,-500.0,0.00014899,2]
[421866744,1778249937000,-500.0,0.00014899,2]
[421866745,1778249937000,-500.0,0.00014899,2]
[421866742,1778249937000,-500.0,0.00014899,2]
[421866739,1778249937000,-500.0,0.00014899,2]
[421866741,1778249937000,-500.0,0.00014899,2]
[421866740,1778249937000,-500.0,0.00014899,2]
[421866738,1778249937000,-500.0,0.00014899,2]
[421866743,1778249937000,-500.0,0.00014899,2]
[421866737,1778249937000,-500.0,0.00014899,2]
[421866771,1778249938000,-500.0,0.00014899,2]
[421866768,1778249938000,-500.0,0.00014899,2]
[421866767,1778249938000,-500.0,0.00014899,2]
[421866766,1778249938000,-500.0,0.00014899,2]
[421866765,1778249938000,-500.0,0.00014899,2]
[421866764,1778249938000,-500.0,0.00014899,2]
[421866758,1778249938000,-500.0,0.00014899,2]
[421866762,1778249938000,-500.0,0.00014899,2]
[421866759,1778249938000,-500.0,0.00014899,2]
[421866760,1778249938000,-500.0,0.00014899,2]
[421866756,1778249938000,-500.0,0.00014899,2]
[421866757,1778249938000,-500.0,0.00014899,2]
[421866755,1778249938000,-500.0,0.00014899,2]
[421866770,1778249938000,-634.48853213,0.00014899,2]
[421866761,1778249938000,-500.0,0.00014899,2]
[421866769,1778249938000,-500.0,0.00014899,2]
[421866763,1778249938000,-500.0,0.00014899,2]
[421866773,1778249938000,-500.0,0.00014899,2]
[421866772,1778249938000,-500.0,0.00014899,2]
[421866789,1778249938000,-500.0,0.00014899,2]
[421866787,1778249938000,-500.0,0.00014899,2]
[421866786,1778249938000,-500.0,0.00014899,2]
[421866783,1778249938000,-500.0,0.00014899,2]
[421866784,1778249938000,-500.0,0.00014899,2]
[421866785,1778249938000,-500.0,0.00014899,2]
[421866782,1778249938000,-500.0,0.00014899,2]
[421866788,1778249938000,-500.0,0.00014899,2]
[421866781,1778249938000,-500.0,0.00014899,2]
[421866779,1778249938000,-500.0,0.00014899,2]
[421866776,1778249938000,-500.0,0.00014899,2]
[421866778,1778249938000,-500.0,0.00014899,2]
[421866777,1778249938000,-500.0,0.00014899,2]
[421866775,1778249938000,-500.0,0.00014899,2]
[421866774,1778249938000,-500.0,0.00014899,2]
[421866780,1778249938000,-500.0,0.00014899,2]
[421866802,1778249939000,-4107.91162329,0.000149,2]
[421866800,1778249939000,-2500.0,0.000149,2]
[421866799,1778249939000,-322579.9252,0.000149,2]
[421866797,1778249939000,-500.0,0.00014899,2]
[421866798,1778249939000,-5000.0,0.000149,2]
[421866795,1778249939000,-500.0,0.00014899,2]
[421866794,1778249939000,-300.0,0.00014899,2]
[421866793,1778249939000,-500.0,0.00014899,2]
[421866791,1778249939000,-500.0,0.00014899,2]
[421866792,1778249939000,-500.0,0.00014899,2]
[421866790,1778249939000,-500.0,0.00014899,2]
[421866801,1778249939000,-10219.7359,0.000149,2]
[421866796,1778249939000,-500.0,0.00014899,2]
[421866803,1778249939000,-150.0,0.00014947,2]
[421866807,1778249939000,-411.90864016,0.00014999,2]
[421866804,1778249939000,-29285.0123049,0.00014986,2]
[421866818,1778249939000,-195113.87680375,0.00015,2]
[421866817,1778249939000,-500.0,0.00014999,2]
[421866805,1778249939000,-6051.113755,0.00014986,2]
[421866815,1778249939000,-500.0,0.00014999,2]
[421866813,1778249939000,-500.0,0.00014999,2]
[421866812,1778249939000,-500.0,0.00014999,2]
[421866816,1778249939000,-500.0,0.00014999,2]
[421866811,1778249939000,-500.0,0.00014999,2]
[421866810,1778249939000,-421.50981836,0.00014999,2]
[421866809,1778249939000,-500.0,0.00014999,2]
[421866808,1778249939000,-450.02089014,0.00014999,2]
[421866806,1778249939000,-71336.2832932,0.00014986,2]
[421866814,1778249939000,-183.71969588,0.00014999,2]
[421866820,1778249987000,-2224.83939653,0.000149,2]
[421866819,1778249987000,-500.0,0.00014899,2]
[421866821,1778249988000,-147275.16060347,0.00015,2]
[421866823,1778250197000,152.0,0.00028927,120]
[421866851,1778250631000,-150.0,0.00014648,2]
[421866852,1778250631000,-300.0,0.00014699,2]
[421866850,1778250631000,-744.95081479,0.00014504,2]
[421866848,1778250631000,-166.67,0.00013847,2]
[421866849,1778250631000,-1211.50418521,0.00014504,2]
[421866857,1778250631000,-6750.6748,0.000147,2]
[421866855,1778250631000,-150.0,0.00014699,2]
[421866854,1778250631000,-412.04167565,0.00014699,2]
[421866853,1778250631000,-787.95832435,0.00014699,2]
[421866858,1778250631000,-1639.65847118,0.000147,2]
[421866856,1778250631000,-7007.85505553,0.000147,2]
[421866867,1778250632000,-500.0,0.00014799,2]
[421866869,1778250632000,-500.0,0.00014799,2]
[421866876,1778250632000,-500.0,0.00014799,2]
[421866866,1778250632000,-500.0,0.00014799,2]
[421866875,1778250632000,-500.0,0.00014799,2]
[421866864,1778250632000,-2738.60774886,0.000147,2]
[421866862,1778250632000,-1950.27232174,0.000147,2]
[421866871,1778250632000,-500.0,0.00014799,2]
[421866863,1778250632000,-4717.22369454,0.000147,2]
[421866861,1778250632000,-445.16237278,0.000147,2]
[421866859,1778250632000,-833.98469452,0.000147,2]
[421866868,1778250632000,-500.0,0.00014799,2]
[421866870,1778250632000,-188.8768971,0.00014799,2]
[421866860,1778250632000,-104.56530548,0.000147,2]
[421866872,1778250632000,-419.50313456,0.00014799,2]
[421866873,1778250632000,-500.0,0.00014799,2]
[421866888,1778250632000,-6036.0581675,0.000148,2]
[421866882,1778250632000,-500.0,0.00014799,2]
[421866884,1778250632000,-500.0,0.00014799,2]
[421866886,1778250632000,-181370.05747222,0.000148,2]
[421866887,1778250632000,-229367.02975216,0.000148,2]
[421866881,1778250632000,-359.00338384,0.00014799,2]
[421866865,1778250632000,-21075.9959,0.00014799,2]
[421866880,1778250632000,-500.0,0.00014799,2]
[421866885,1778250632000,-500.0,0.00014799,2]
[421866883,1778250632000,-195.05687285,0.00014799,2]
[421866878,1778250632000,-500.0,0.00014799,2]
[421866877,1778250632000,-500.0,0.00014799,2]
[421866879,1778250632000,-500.0,0.00014799,2]
[421866874,1778250632000,-500.0,0.00014799,2]
[421866905,1778250638000,-2092.70778825,0.000148,2]
[421866909,1778250638000,-1308.5078935,0.000148,2]
[421866908,1778250638000,-3708.12619081,0.000148,2]
[421866906,1778250638000,-7906.75379404,0.000148,2]
[421866912,1778250638000,-23075.99589367,0.000148,2]
[421866907,1778250638000,-1023.26934686,0.000148,2]
[421866911,1778250638000,-582.57802036,0.000148,2]
[421866910,1778250638000,-993.34152341,0.000148,2]
[421866913,1778250638000,-380.52932165,0.000148,2]
[421867198,1778250640000,-1893.14056371,0.000148,2]
[421867196,1778250640000,-2059.4264674,0.000148,2]
[421867188,1778250640000,-799.41080678,0.000148,2]
[421867182,1778250640000,-1999.95024874,0.000148,2]
[421867179,1778250640000,-951.08787273,0.000148,2]
[421867470,1778250645000,-3642.70196642,0.000148,2]
[421867471,1778250645000,-40592.49999999,0.000148,2]
[421867472,1778250647000,-93169.76696366,0.000148,2]
[421867473,1778250647000,-1107.93239242,0.000148,2]
[421867475,1778250647000,-1909.66153725,0.000148,2]
[421867474,1778250647000,-444.58999998,0.000148,2]
[421867476,1778250647000,-55580.279769,0.000148,2]
[421867477,1778250647000,-40126.93298827,0.000148,2]
[421867480,1778250647000,-40.2145395,0.000148,2]
[421867479,1778250647000,-902.28638058,0.000148,2]
[421867482,1778250647000,-1189.45646289,0.000148,2]
[421867481,1778250647000,-2325.04353035,0.000148,2]
[421867483,1778250647000,-42264.28998961,0.000148,2]
[421867478,1778250647000,-59.15438924,0.000148,2]
[421867486,1778250648000,-1641.005785,0.000148,2]
[421867485,1778250648000,-2501.3232,0.000148,2]
[421867484,1778250648000,-525.16371791,0.000148,2]
[421867487,1778250648000,-377.0455958,0.000148,2]
[421867505,1778250667000,152.0,0.00014798,30]
[421867504,1778250667000,152.0,0.00014798,30]
[421867507,1778250668000,152.0,0.00028767,120]
[421867506,1778250668000,152.0,0.00014802,30]
[421867509,1778250697000,152.0,0.00014818,30]
[421867511,1778250698000,152.0,0.00028767,120]
[421867510,1778250698000,152.0,0.00014818,30]
[421867518,1778251484000,155.72505921,0.0001,30]
[421867521,1778251809000,152.0,0.00014001,30]
[421867534,1778251833000,-2000.0,0.00013846,2]
[421867530,1778251833000,-876.78,0.00013797,2]
[421867536,1778251833000,-250.0,0.00014,2]
[421867532,1778251833000,-172.59,0.00013809,2]
[421867529,1778251833000,-200.0,0.00013766,2]
[421867539,1778251833000,-204.8,0.00014352,2]
[421867533,1778251833000,-288.43,0.00013817,2]
[421867528,1778251833000,-200.0,0.00013753,2]
[421867535,1778251833000,-150.15,0.00013846,2]
[421867537,1778251833000,-204.8,0.00014002,2]
[421867531,1778251833000,-150.0,0.00013798,2]
[421867527,1778251833000,-500.0,0.00013735,2]
[421867541,1778251833000,-300.0,0.00014597,2]
[421867538,1778251833000,-166.58,0.00014302,2]
[421867551,1778251833000,-500.0,0.00014673,2]
[421867552,1778251833000,-500.0,0.00014673,2]
[421867549,1778251833000,-500.0,0.00014673,2]
[421867550,1778251833000,-500.0,0.00014673,2]
[421867540,1778251833000,-1200.0,0.00014596,2]
[421867546,1778251833000,-6740.68518017,0.00014602,2]
[421867547,1778251833000,-3000.67075172,0.00014602,2]
[421867544,1778251833000,-150.0,0.00014598,2]
[421867545,1778251833000,-28178.3754,0.00014599,2]
[421867543,1778251833000,-1565.164,0.00014598,2]
[421867548,1778251833000,-500.0,0.00014673,2]
[421867542,1778251833000,-300.0,0.00014597,2]
[421867575,1778251834000,-1651.4531954,0.00014797,2]
[421867563,1778251834000,-500.0,0.00014698,2]
[421867579,1778251834000,-1890.15932648,0.00014799,2]
[421867570,1778251834000,-4824.16155,0.00014797,2]
[421867565,1778251834000,-539486.25844694,0.00014699,2]
[421867584,1778251834000,-151.0,0.000148,2]
[421867574,1778251834000,-15294.7106795,0.00014797,2]
[421867581,1778251834000,-516.94609672,0.00014799,2]
[421867592,1778251834000,-152.0,0.00014834,7]
[421867583,1778251834000,-1008.62,0.000148,2]
[421867567,1778251834000,-121187.73315306,0.00014699,2]
[421867561,1778251834000,-500.0,0.00014698,2]
[421867559,1778251834000,-500.0,0.00014698,2]
[421867564,1778251834000,-501.931273,0.00014698,2]
[421867572,1778251834000,-6278.7934802,0.00014797,2]
[421867562,1778251834000,-500.0,0.00014698,2]
[421867558,1778251834000,-500.0,0.00014698,2]
[421867555,1778251834000,-532.21382797,0.00014698,2]
[421867557,1778251834000,-635.0965594,0.00014698,2]
[421867553,1778251834000,-500.0,0.00014698,2]
[421867554,1778251834000,-500.0,0.00014698,2]
[421867556,1778251834000,-500.0,0.00014698,2]
[421867560,1778251834000,-500.0,0.00014698,2]
[421867594,1778251834000,-152.0,0.00014852,7]
[421867577,1778251834000,-613.80293222,0.00014799,2]
[421867586,1778251834000,-355.67362722,0.000148,2]
[421867569,1778251834000,-204.8,0.00014702,2]
[421867598,1778251834000,-152.0,0.00014852,7]
[421867599,1778251834000,-152.0,0.00014852,7]
[421867629,1778251834000,-1716.10092941,0.00015,2]
[421867628,1778251834000,-1294.22308384,0.00015,2]
[421867627,1778251834000,-6764.85518175,0.00015,2]
[421867625,1778251834000,-260.99829995,0.00015,2]
[421867623,1778251834000,-119712.02432101,0.00015,2]
[421867614,1778251834000,-1825.73849924,0.000149,2]
[421867619,1778251834000,-10873.0435783,0.00014954,2]
[421867618,1778251834000,-1121.2913521,0.00014954,2]
[421867611,1778251834000,-2100.0,0.000149,5]
[421867613,1778251834000,-500.0,0.000149,2]
[421867620,1778251834000,-501.30095539,0.00014973,2]
[421867624,1778251834000,-8585.26474699,0.00015,2]
[421867622,1778251834000,-152.0,0.00014986,7]
[421867621,1778251834000,-152.0,0.00014984,2]
[421867596,1778251834000,-152.0,0.00014852,7]
[421867589,1778251834000,-152.0,0.00014834,7]
[421867601,1778251834000,-5000.0,0.00014854,2]
[421867603,1778251834000,-152.0,0.00014882,7]
[421867588,1778251834000,-152.0,0.0001483,7]
[421867605,1778251834000,-152.0,0.00014882,7]
[421867616,1778251834000,-152.0,0.00014912,7]
[421867609,1778251834000,-582.30275321,0.000149,2]
[421867626,1778251834000,-1773.57230618,0.00015,2]
[421867617,1778251834000,-60993.6329272,0.00014954,2]
[421867607,1778251834000,-152.0,0.00014882,7]
[421867649,1778251838000,-160.0,0.00015291,2]
[421867640,1778251838000,-300.0,0.00015177,2]
[421867646,1778251838000,-1000.0,0.00015221,2]
[421867642,1778251838000,-971.47907059,0.00015221,2]
[421867645,1778251838000,-1000.0,0.00015221,2]
[421867644,1778251838000,-282.82467916,0.00015221,2]
[421867643,1778251838000,-1000.0,0.00015221,2]
[421867638,1778251838000,-900.0,0.00015137,2]
[421867633,1778251838000,-204.8,0.00015052,2]
[421867641,1778251838000,-28.52092941,0.00015221,2]
[421867637,1778251838000,-250.0,0.00015128,2]
[421867636,1778251838000,-162.33,0.00015099,2]
[421867634,1778251838000,-152.0,0.00015067,7]
[421867635,1778251838000,-150.0,0.00015068,2]
[421867631,1778251838000,-1283.89907059,0.00015,2]
[421867632,1778251838000,-152.0,0.00015037,7]
[421867651,1778251838000,-204.8,0.00015402,2]
[421867639,1778251838000,-500.0,0.00015174,2]
[421867650,1778251838000,-1046.15091079,0.00015374,2]
[421867647,1778251838000,-214.68143985,0.00015291,2]
[421867653,1778251838000,-155.70018602,0.000155,2]
[421867668,1778251838000,-380.52932165,0.00016116,2]
[421867670,1778251838000,-589.5803515,0.00016116,2]
[421867669,1778251838000,-794.6792536,0.00016116,2]
[421867665,1778251838000,-500.0,0.00015996,2]
[421867667,1778251838000,-8792.93142475,0.00016116,2]
[421867664,1778251838000,-287.0,0.00015982,2]
[421867663,1778251838000,-420.0,0.00015982,2]
[421867661,1778251838000,-1500.0,0.00015768,2]
[421867648,1778251838000,-207.99170503,0.00015291,2]
[421867662,1778251838000,-1500.0,0.00015768,2]
[421867659,1778251838000,-622.86348549,0.00015768,2]
[421867660,1778251838000,-1283.73471914,0.00015768,2]
[421867658,1778251838000,-255.0,0.00015722,2]
[421867655,1778251838000,-2000.0,0.00015577,2]
[421867654,1778251838000,-156.39,0.00015504,2]
[421867666,1778251838000,-1680.0,0.00016056,2]
[421867656,1778251838000,-250.0,0.00015616,2]
[421867652,1778251838000,-500.0,0.00015448,2]
[421867657,1778251838000,-500.0,0.00015722,2]
[421867946,1778251840000,-580.80823926,0.00016116,2]
[421867948,1778251840000,-387.24140924,0.00016116,2]
[421867951,1778251840000,-150.99,0.00016116,2]
[421867953,1778251840000,-2547.69185882,0.00016116,2]
[421868088,1778251843000,-297.91332503,0.00014602,2]
[421868108,1778251846000,-151.0,0.00016438,2]
[421868110,1778251846000,-153.0,0.00016438,2]
[421868120,1778251846000,-152.0,0.00016438,2]
[421868112,1778251846000,-150.0,0.00016438,2]
[421868117,1778251846000,-150.0,0.00016438,2]
[421868121,1778251846000,-151.0,0.00016438,2]
[421868111,1778251846000,-152.0,0.00016438,2]
[421868115,1778251846000,-151.0,0.00016438,2]
[421868107,1778251846000,-150.0,0.00016438,2]
[421868114,1778251846000,-151.0,0.00016438,2]
[421868116,1778251846000,-150.0,0.00016438,2]
[421868113,1778251846000,-151.0,0.00016438,2]
[421868109,1778251846000,-152.0,0.00016438,2]
[421868102,1778251846000,-150.0,0.00016438,2]
[421868096,1778251846000,-503.02373868,0.0001627,2]
[421868105,1778251846000,-152.0,0.00016438,2]
[421868101,1778251846000,-503.1,0.00016438,2]
[421868103,1778251846000,-153.5821311,0.00016438,2]
[421868106,1778251846000,-150.0,0.00016438,2]
[421868104,1778251846000,-152.0,0.00016438,2]
[421868100,1778251846000,-427.45257726,0.00016438,2]
[421868098,1778251846000,-1965.30571079,0.00016316,2]
[421868097,1778251846000,-1985.83123727,0.00016316,2]
[421868094,1778251846000,-2452.29814118,0.00016116,2]
[421868095,1778251846000,-350.0,0.00016164,2]
[421868092,1778251846000,-6012.92341416,0.00014602,2]
[421868093,1778251846000,-500.0,0.00014698,2]
[421868118,1778251846000,-151.0,0.00016438,2]
[421868099,1778251846000,-151.95460602,0.00016337,2]
[421868119,1778251846000,-152.0,0.00016438,2]
[421868166,1778251846000,-508.7582812,0.00016608,2]
[421868124,1778251846000,-279.53990784,0.00016438,2]
[421868162,1778251846000,-500.82054847,0.00016608,2]
[421868160,1778251846000,-492.77924002,0.00016608,2]
[421868158,1778251846000,-526.09443933,0.00016606,2]
[421868164,1778251846000,-517.88231852,0.00016608,2]
[421868122,1778251846000,-151.0,0.00016438,2]
[421868145,1778251846000,-2453.96,0.00016446,2]
[421868143,1778251846000,-500.21620449,0.00016438,2]
[421868141,1778251846000,-409.82005913,0.00016438,2]
[421868137,1778251846000,-500.0,0.00016438,2]
[421868139,1778251846000,-366.59660479,0.00016438,2]
[421868135,1778251846000,-500.39708524,0.00016438,2]
[421868154,1778251846000,-8148.0727787,0.00016579,2]
[421868152,1778251846000,-505.65122917,0.00016542,2]
[421868146,1778251846000,-156.39,0.00016473,2]
[421868156,1778251846000,-505.65122917,0.00016601,2]
[421868148,1778251846000,-6082.34,0.00016474,2]
[421868150,1778251846000,-900.0,0.00016507,2]
[421868125,1778251846000,-313.46424367,0.00016438,2]
[421868128,1778251846000,-500.0,0.00016438,2]
[421868127,1778251846000,-502.08379234,0.00016438,2]
[421868126,1778251846000,-500.57063595,0.00016438,2]
[421868133,1778251846000,-500.0,0.00016438,2]
[421868123,1778251846000,-151.0,0.00016438,2]
[421868129,1778251846000,-500.0,0.00016438,2]
[421868132,1778251846000,-500.11996036,0.00016438,2]
[421868131,1778251846000,-500.56601092,0.00016438,2]
[421868130,1778251846000,-500.0,0.00016438,2]
[421868136,1778251846000,-500.17470362,0.00016438,2]
[421868134,1778251846000,-500.0,0.00016438,2]